fUST/lending_fUST_20260111
["ID","MTS","AMOUNT","RATE_DAILY","PERIOD"]
[401310925,1768126245613,-303.10001603,0.000189,2]
[401310926,1768126245623,-303.10001603,0.00019089,2]
[401310927,1768126245634,-303.10001603,0.00019089,2]
[401310928,1768126245644,-166.96,0.000192,2]
[401310929,1768126245654,-163.88,0.000192,2]
[401310931,1768126245665,-2378.23,0.000192,2]
[401310933,1768126245674,-14852.23,0.000192,2]
[401310935,1768126245683,-167.58,0.000192,2]
[401310937,1768126245692,-303.10001603,0.00019278,2]
[401310938,1768126245701,-303.10001603,0.00019278,2]
[401310939,1768126245711,-518.63,0.000194,2]
[401310940,1768126245720,-1000.0,0.00019448,2]
[401310941,1768126245728,-1000.0,0.00019448,2]
[401310942,1768126245738,-303.10001603,0.00019467,2]
[401310943,1768126245749,-303.10001603,0.00019467,2]
[401310944,1768126245759,-848.08125772,0.00019537,2]
[401310945,1768126245770,-303.10001603,0.00019656,2]
[401310946,1768126245779,-303.10001603,0.00019656,2]
[401310947,1768126245790,-454.65002405,0.00019845,4]
[401310948,1768126245800,-454.65002405,0.00019845,4]
[401310949,1768126245809,-518.63,0.000199,2]
[401310950,1768126245819,-151.97857558,0.0002,2]
[401310951,1768126245828,-454.65002405,0.00020034,4]
[401310952,1768126245839,-454.65002405,0.00020034,4]
[401310953,1768126245848,-1087.80747027,0.00020116,2]
[401310954,1768126245857,-454.65002405,0.00020223,4]
[401310955,1768126245867,-454.65002405,0.00020223,4]
[401310956,1768126245876,-518.63,0.000204,2]
[401310957,1768126245885,-454.65002405,0.00020412,4]
[401310958,1768126245894,-454.65002405,0.00020412,4]
[401310959,1768126245903,-468.6,0.00020501,2]
[401310960,1768126245912,-301.57435521,0.00020601,4]
[401310961,1768126245921,-454.65002405,0.00020601,4]
[401310962,1768126245930,-151.0,0.000209,3]
[401310963,1768126245939,-518.63,0.000209,2]
[401310964,1768126245947,-3000.0,0.00021,2]
[401310965,1768126245956,-3000.0,0.0002101,2]
[401310966,1768126245965,-3000.0,0.0002102,2]
[401310967,1768126245976,-3000.0,0.0002103,2]
[401310968,1768126245988,-3000.0,0.0002104,2]
[401310969,1768126245998,-3000.0,0.0002105,2]
[401310970,1768126246008,-3000.0,0.0002106,2]
[401310971,1768126246018,-3000.0,0.0002107,2]
[401310972,1768126246028,-3000.0,0.0002108,2]
[401310973,1768126246038,-3000.0,0.0002109,2]
[401310974,1768126246048,-3000.0,0.000211,2]
[401310975,1768126246058,-3000.0,0.0002111,2]
[401310976,1768126246068,-3000.0,0.0002112,2]
[401310977,1768126246079,-3000.0,0.0002113,2]
[401310978,1768126246090,-3000.0,0.0002114,2]
[401310979,1768126246100,-3000.0,0.0002115,2]
[401310980,1768126246109,-5944.891896,0.0002116,2]
[401310981,1768126246118,-2870.56440789,0.00021268,2]
[401310982,1768126246127,-1000.0,0.00021392,10]
[401310983,1768126246137,-1000.0,0.00021392,10]
[401310984,1768126246146,-579.0,0.00021392,10]
[401310985,1768126246155,-2378.23,0.000214,2]
[401310986,1768126246165,-14852.23,0.000214,2]
[401310987,1768126246174,-518.63,0.000214,2]
[401310988,1768126246183,-921.47290502,0.00021537,2]
[401310989,1768126246192,-173.07277092,0.00021833,2]
[401310990,1768126246201,-518.63,0.000219,2]
[401310991,1768126246210,-585.11053,0.00021918,2]
[401310992,1768126246219,-152.90727816,0.00021918,2]
[401310993,1768126246229,-173.07277092,0.00022201,23]
[401310994,1768126246239,-155.03,0.00022251,2]
[401310995,1768126246248,-468.6,0.00022341,2]
[401310996,1768126246257,-518.63,0.000224,2]
[401310997,1768126246266,-1087.80747027,0.00022492,2]
[401310998,1768126246275,-173.07277092,0.00022569,45]
[401310999,1768126246284,-173.07277092,0.00022937,66]
[401311000,1768126246293,-518.63,0.00023,2]
[401311001,1768126246302,-173.07277092,0.00023304,88]
[401311002,1768126246311,-518.63,0.000235,2]
[401311003,1768126246320,-1000.0,0.00023532,10]
[401311004,1768126246329,-1000.0,0.00023532,10]
[401311005,1768126246339,-1000.0,0.00023532,10]
[401311006,1768126246348,-994.86455233,0.00023537,2]
[401311007,1768126246357,-518.63,0.00024,2]
[401311008,1768126246366,-468.6,0.00024182,2]
[401311009,1768126246375,-518.63,0.000245,2]
[401311010,1768126246476,-500.0,0.00024658,2]
[401311011,1768126246487,-500.0,0.00024795,2]
[401311012,1768126246496,-76526.0115688,0.000248,2]
[401311013,1768126246505,-1087.80747027,0.00024868,2]
[401311014,1768126246515,-151.0,0.000249,7]
[401311015,1768126246526,-151.0,0.000249,7]
[401311016,1768126246536,-151.0,0.000249,7]
[401311017,1768126246545,-151.0,0.000249,7]
[401311018,1768126246555,-151.0,0.000249,7]
[401311019,1768126246564,-151.0,0.000249,7]
[401311020,1768126246573,-151.0,0.000249,7]
[401311021,1768126246583,-151.0,0.000249,7]
[401311022,1768126246595,-151.0,0.000249,7]
[401311023,1768126246604,-169.882376,0.000249,7]
[401311024,1768126246613,-161.096358,0.000249,7]
[401311025,1768126246622,-151.0,0.000249,7]
[401311026,1768126246631,-151.0,0.000249,7]
[401311027,1768126246641,-151.0,0.000249,7]
[401311028,1768126246650,-151.0,0.000249,7]
[401311029,1768126246659,-382.637039,0.000249,7]
[401311030,1768126246668,-382.637039,0.000249,7]
[401311031,1768126246677,-382.637039,0.000249,7]
[401311032,1768126246686,-382.637039,0.000249,7]
[401311033,1768126246695,-151.0,0.000249,7]
[401311034,1768126246704,-151.0,0.000249,7]
[401311035,1768126246714,-151.292503,0.000249,7]
[401311036,1768126246723,-151.0,0.000249,7]
[401311037,1768126246731,-151.0,0.000249,7]
[401311038,1768126246740,-301.393574,0.000249,7]
[401311039,1768126246749,-151.0,0.000249,7]
[401311040,1768126246758,-170.54126,0.000249,7]
[401311041,1768126246768,-164.871038,0.000249,7]
[401311042,1768126246776,-400097.821185,0.000249,2]
[401311043,1768126246785,-225.859576,0.000249,7]
[401311044,1768126246794,-151.0,0.000249,7]
[401311045,1768126246804,-151.0,0.000249,7]
[401311046,1768126246814,-151.0,0.000249,2]
[401311047,1768126246823,-151.0,0.000249,7]
[401311048,1768126246833,-151.0,0.000249,7]
[401311049,1768126246843,-161.662681,0.000249,7]
[401311050,1768126246854,-151.0,0.000249,7]
[401311051,1768126246863,-151.0,0.000249,7]
[401311052,1768126246873,-151.0,0.000249,7]
[401311053,1768126246883,-151.0,0.000249,7]
[401311054,1768126246893,-173.073557,0.000249,7]
[401311055,1768126246903,-151.0,0.000249,7]
[401311056,1768126246912,-151.0,0.000249,7]
[401311057,1768126246923,-151.0,0.000249,7]
[401311058,1768126246933,-173.073557,0.000249,7]
[401311059,1768126246943,-151.0,0.000249,7]
[401311060,1768126246952,-151.0,0.000249,7]
[401311061,1768126246961,-151.0,0.000249,7]
[401311062,1768126246971,-151.0,0.000249,7]
[401311063,1768126246980,-173.073557,0.000249,7]
[401311064,1768126246989,-151.0,0.000249,7]
[401311065,1768126246999,-173.073557,0.000249,7]
[401311066,1768126247008,-151.0,0.000249,7]
[401311067,1768126247019,-151.0,0.000249,7]
[401311068,1768126247030,-151.0,0.000249,7]
[401311069,1768126247039,-500.0,0.00024932,2]
[401311070,1768126247050,-518.63,0.00025,2]
[401311071,1768126247059,-500.0,0.00025069,2]
[401311072,1768126247067,-250.0,0.00025205,2]
[401311073,1768126247076,-500.0,0.00025206,2]
[401311074,1768126247085,-585.11053,0.00025342,2]
[401311075,1768126247094,-500.0,0.00025343,2]
[401311076,1768126247103,-259.77529652,0.00025425,14]
[401311077,1768126247112,-500.0,0.0002548,2]
[401311078,1768126247121,-500.0,0.0002548,2]
[401311079,1768126247130,-176.23516734,0.0002548,2]
[401311080,1768126247139,-500.0,0.0002548,2]
[401311081,1768126247149,-500.0,0.0002548,2]
[401311082,1768126247158,-500.0,0.0002548,2]
[401311083,1768126247167,-171.65605742,0.0002548,2]
[401311084,1768126247176,-518.63,0.000255,2]
[401311085,1768126247185,-1068.25619963,0.00025537,2]
[401311086,1768126247194,-500.0,0.00025617,2]
[401311087,1768126247208,-500.0,0.00025617,2]
[401311088,1768126247217,-503.05659276,0.00025617,2]
[401311089,1768126247227,-500.0,0.00025617,2]
[401311090,1768126247237,-598.52490689,0.00025617,2]
[401311091,1768126247248,-350.0,0.00025753,2]
[401311092,1768126247259,-255.99235489,0.00025754,2]
[401311093,1768126247268,-500.0,0.00025754,2]
[401311094,1768126247277,-179.07075974,0.00025754,2]
[401311095,1768126247286,-500.0,0.00025754,2]
[401311096,1768126247295,-2000.51544348,0.0002587,2]
[401311097,1768126247304,-1000.0,0.00025885,10]
[401311098,1768126247313,-1000.0,0.00025885,10]
[401311099,1768126247322,-1000.0,0.00025885,10]
[401311100,1768126247331,-715.0,0.00025885,10]
[401311101,1768126247342,-500.0,0.00025891,2]
[401311102,1768126247355,-500.0,0.00025891,2]
[401311103,1768126247364,-518.63,0.00026,2]
[401311104,1768126247373,-468.6,0.00026022,2]
[401311105,1768126247382,-263.97622948,0.00026028,2]
[401311106,1768126247392,-483.81749546,0.00026028,2]
[401311107,1768126247401,-500.0,0.00026028,2]
[401311108,1768126247410,-264.95729538,0.00026028,2]
[401311109,1768126247419,-2378.23,0.000261,14]
[401311110,1768126247429,-14852.23,0.000261,2]
[401311111,1768126247439,-500.0,0.00026165,2]
[401311112,1768126247449,-450.0,0.00026301,2]
[401311113,1768126247459,-500.0,0.00026302,2]
[401311114,1768126247468,-500.0,0.00026439,2]
[401311115,1768126247477,-518.63,0.000265,2]
[401311116,1768126247486,-500.0,0.00026576,2]
[401311117,1768126247495,-500.0,0.00026713,2]
[401311118,1768126247506,-550.0,0.00026849,2]
[401311119,1768126247519,-620.9785477,0.0002685,2]
[401311120,1768126247530,-183.0,0.00027068,23]
[401311121,1768126247548,-518.63,0.000271,2]
[401311122,1768126247559,-181.17141011,0.00027119,2]
[401311123,1768126247569,-2870.56440789,0.00027194,2]
[401311124,1768126247579,-1087.80747027,0.00027245,2]
[401311125,1768126247595,-702.10519323,0.00027397,5]
[401311126,1768126247606,-300.0,0.00027397,2]
[401311127,1768126247617,-300.0,0.00027397,2]
[401311128,1768126247628,-300.0,0.00027397,2]
[401311129,1768126247638,-300.0,0.00027397,2]
[401311130,1768126247650,-206.70354413,0.00027451,2]
[401311131,1768126247662,-1141.64784693,0.00027537,2]
[401311132,1768126247672,-518.63,0.000276,2]
[401311133,1768126247682,-468.6,0.00027863,3]
[401311134,1768126247691,-5000.0,0.00028037,2]
[401311135,1768126247700,-518.63,0.000281,2]
[401311136,1768126247709,-1000.0,0.00028473,30]
[401311137,1768126247718,-1000.0,0.00028473,30]
[401311138,1768126247727,-1000.0,0.00028473,30]
[401311139,1768126247737,-518.63,0.000286,2]
[401311140,1768126247746,-211.0,0.00028712,30]
[401311141,1768126247756,-585.11053,0.00028767,60]
[401311142,1768126247765,-210.77216325,0.00028899,5]
[401311143,1768126247775,-151.0,0.00028939,7]
[401311144,1768126247784,-151.0,0.00028939,7]
[401311145,1768126247793,-151.0,0.00028939,2]
[401311146,1768126247802,-152.205819,0.00028939,7]
[401311147,1768126247811,-151.0,0.00028939,7]
[401311148,1768126247820,-151.0,0.00028939,7]
[401311149,1768126247829,-151.0,0.00028939,7]
[401311150,1768126247838,-151.0,0.00028939,7]
[401311151,1768126247847,-151.0,0.00028939,7]
[401311152,1768126247857,-173.073557,0.00028939,7]
[401311153,1768126247867,-151.0,0.00028939,7]
[401311154,1768126247878,-151.0,0.00028939,7]
[401311155,1768126247888,-151.0,0.00028939,7]
[401311156,1768126247897,-173.073557,0.00028939,7]
[401311157,1768126247906,-151.0,0.00028939,7]
[401311158,1768126247915,-151.0,0.00028939,7]
[401311159,1768126247924,-151.0,0.00028939,7]
[401311160,1768126247933,-151.0,0.00028939,7]
[401311161,1768126247942,-173.073557,0.00028939,7]
[401311162,1768126247952,-151.0,0.00028939,7]
[401311163,1768126247961,-173.073557,0.00028939,7]
[401311164,1768126247971,-221.073797,0.00028939,7]
[401311165,1768126247982,-8382.93313115,0.0002902,2]
[401311166,1768126247991,-518.63,0.000291,2]
[401311167,1768126248002,-500.0,0.00029255,7]
[401311168,1768126248013,-1215.03949423,0.00029537,2]
[401311169,1768126248024,-518.63,0.000296,2]
[401311170,1768126248034,-468.6,0.00029703,4]
[401311171,1768126248043,-210.77216324,0.00029792,5]
[401311172,1768126248053,-2378.23,0.0003,14]
[401311173,1768126248062,-14852.23,0.0003,2]
[401311174,1768126248070,-518.63,0.000301,2]
[401311175,1768126248079,-300.0,0.00030137,5]
[401311176,1768126248088,-506.7938,0.00030137,2]
[401311177,1768126248098,-506.7938,0.00030137,3]
[401311178,1768126248107,-506.7938,0.00030137,2]
[401311179,1768126248115,-506.7938,0.00030137,3]
[401311180,1768126248124,-506.7938,0.00030137,4]
[401311181,1768126248133,-221.86,0.00030137,2]
[401311182,1768126248142,-151.0,0.00030137,31]
[401311183,1768126248151,-240.800368,0.00030137,31]
[401311184,1768126248160,-151.0,0.00030137,31]
[401311185,1768126248169,-1355.369352,0.00030137,31]
[401311186,1768126248179,-1355.369352,0.00030137,31]
[401311187,1768126248188,-151.0,0.00030137,31]
[401311188,1768126248198,-1355.369352,0.00030137,31]
[401311189,1768126248207,-1355.369352,0.00030137,31]
[401311190,1768126248216,-152.567384,0.00030137,31]
[401311191,1768126248225,-151.0,0.00030137,31]
[401311192,1768126248235,-151.0,0.00030137,31]
[401311193,1768126248244,-226.782828,0.00030137,31]
[401311194,1768126248257,-728.329358,0.00030137,31]
[401311195,1768126248266,-728.329358,0.00030137,31]
[401311196,1768126248275,-728.329358,0.00030137,31]
[401311197,1768126248285,-728.329358,0.00030137,31]
[401311198,1768126248295,-151.0,0.00030137,14]
[401311199,1768126248305,-5000.0,0.00030203,2]
[401311200,1768126248315,-536.72987461,0.00030233,7]
[401311201,1768126248326,-151.0,0.000308,16]
[401311202,1768126248340,-163.0,0.00030904,43]
[401311203,1768126248350,-1288.43114154,0.00031537,2]
[401311204,1768126248359,-468.6,0.00031544,5]
[401311205,1768126248368,-381.0,0.00031734,2]
[401311206,1768126248378,-381.0,0.00031778,2]
[401311207,1768126248387,-381.0,0.00031875,7]
[401311208,1768126248397,-381.0,0.00031889,2]
[401311209,1768126248406,-382.0,0.00031971,2]
[401311210,1768126248415,-381.0,0.00032008,2]
[401311211,1768126248424,-382.0,0.0003208,2]
[401311212,1768126248433,-381.0,0.00032098,2]
[401311213,1768126248451,-382.0,0.00032332,7]
[401311214,1768126248459,-5000.0,0.0003237,2]
[401311215,1768126248469,-171.0,0.000324,120]
[401311216,1768126248478,-381.0,0.00032498,7]
[401311217,1768126248487,-381.0,0.00032552,2]
[401311218,1768126248496,-999.0,0.00032876,120]
[401311219,1768126248505,-300.0,0.00032877,24]
[401311220,1768126248515,-300.0,0.00032877,5]
[401311221,1768126248524,-450.0,0.00032877,5]
[401311222,1768126248533,-151.0,0.00032917,2]
[401311223,1768126248543,-151.0,0.00032917,2]
[401311224,1768126248552,-151.0,0.00032917,2]
[401311225,1768126248562,-151.0,0.00032917,2]
[401311226,1768126248571,-151.0,0.00032917,2]
[401311227,1768126248580,-151.0,0.00032917,2]
[401311228,1768126248592,-151.0,0.00032917,2]
[401311229,1768126248601,-151.0,0.00032917,2]
[401311230,1768126248610,-151.0,0.00032917,2]
[401311231,1768126248619,-151.0,0.00032917,2]
[401311232,1768126248630,-151.0,0.00032917,2]
[401311233,1768126248638,-151.0,0.00032917,2]
[401311234,1768126248647,-151.0,0.00032917,2]
[401311235,1768126248656,-151.0,0.00032917,2]
[401311236,1768126248666,-151.0,0.00032917,2]
[401311237,1768126248675,-151.0,0.00032917,2]
[401311238,1768126248684,-151.0,0.00032917,2]
[401311239,1768126248694,-151.0,0.00032917,2]
[401311240,1768126248703,-151.0,0.00032917,2]
[401311241,1768126248799,-151.0,0.00032917,2]
[401311242,1768126248808,-151.0,0.00032917,2]
[401311243,1768126248817,-151.0,0.00032917,2]
[401311244,1768126248826,-151.0,0.00032917,2]
[401311245,1768126248836,-151.0,0.00032917,2]
[401311246,1768126248845,-151.0,0.00032917,2]
[401311247,1768126248855,-151.0,0.00032917,2]
[401311248,1768126248864,-151.0,0.00032917,2]
[401311249,1768126248873,-151.0,0.00032917,2]
[401311250,1768126248882,-151.0,0.00032917,2]
[401311251,1768126248891,-151.0,0.00032917,2]
[401311252,1768126248900,-151.0,0.00032917,2]
[401311253,1768126248909,-151.0,0.00032917,2]
[401311254,1768126248918,-151.0,0.00032917,2]
[401311255,1768126248927,-151.0,0.00032917,2]
[401311256,1768126248936,-151.0,0.00032917,2]
[401311257,1768126248945,-151.0,0.00032917,2]
[401311258,1768126248954,-151.0,0.00032917,2]
[401311259,1768126248963,-151.0,0.00032917,2]
[401311260,1768126248972,-151.0,0.00032917,2]
[401311261,1768126248981,-151.0,0.00032917,2]
[401311262,1768126248990,-381.0,0.00032931,2]
[401311263,1768126248999,-1112.0,0.00032999,2]
[401311264,1768126249008,-64142.26753441,0.00033,10]
[401311265,1768126249018,-382.0,0.00033006,2]
[401311266,1768126249027,-174.0,0.00033096,58]
[401311267,1768126249036,-2870.56440789,0.0003312,2]
[401311268,1768126249046,-381.0,0.00033152,2]
[401311269,1768126249055,-2378.23,0.000332,30]
[401311270,1768126249064,-14852.23,0.000332,14]
[401311271,1768126249074,-180.93086226,0.000332,117]
[401311272,1768126249083,-180.93086222,0.000332,117]
[401311273,1768126249092,-180.93086222,0.000332,117]
[401311274,1768126249102,-180.93086222,0.000332,117]
[401311275,1768126249111,-1045039.0068,0.0003322,30]
[401311276,1768126249120,-264.224,0.0003322,31]
[401311277,1768126249129,-264.224,0.0003322,31]
[401311278,1768126249139,-264.224,0.0003322,31]
[401311279,1768126249148,-264.224,0.0003322,31]
[401311280,1768126249157,-151.0,0.0003322,31]
[401311281,1768126249167,-156.82101,0.0003322,31]
[401311282,1768126249176,-151.0,0.0003322,31]
[401311283,1768126249186,-151.0,0.0003322,7]
[401311284,1768126249195,-151.0,0.0003322,7]
[401311285,1768126249205,-151.0,0.0003322,31]
[401311286,1768126249214,-151.0,0.0003322,31]
[401311287,1768126249224,-151.0,0.0003322,31]
[401311288,1768126249233,-151.0,0.0003322,31]
[401311289,1768126249243,-151.0,0.0003322,31]
[401311290,1768126249252,-163.811911,0.0003322,31]
[401311291,1768126249261,-175.972983,0.0003322,31]
[401311292,1768126249272,-151.0,0.0003322,31]
[401311293,1768126249281,-159.196638,0.0003322,31]
[401311294,1768126249291,-177.831998,0.0003322,7]
[401311295,1768126249300,-160.734397,0.0003322,31]
[401311296,1768126249310,-382.637039,0.0003322,31]
[401311297,1768126249320,-382.637039,0.0003322,31]
[401311298,1768126249329,-382.637039,0.0003322,31]
[401311299,1768126249338,-382.637039,0.0003322,31]
[401311300,1768126249348,-151.0,0.0003322,31]
[401311301,1768126249357,-157.400999,0.0003322,31]
[401311302,1768126249367,-192.928076,0.0003322,31]
[401311303,1768126249377,-151.0,0.0003322,31]
[401311304,1768126249386,-151.0,0.0003322,31]
[401311305,1768126249396,-151.0,0.0003322,31]
[401311306,1768126249406,-151.0,0.0003322,31]
[401311307,1768126249415,-1355.369352,0.0003322,31]
[401311308,1768126249424,-1355.369352,0.0003322,31]
[401311309,1768126249434,-160.161373,0.0003322,31]
[401311310,1768126249443,-1355.369352,0.0003322,31]
[401311311,1768126249453,-1355.369352,0.0003322,31]
[401311312,1768126249462,-151.0,0.0003322,31]
[401311313,1768126249471,-239.620179,0.0003322,31]
[401311314,1768126249480,-728.329358,0.0003322,31]
[401311315,1768126249489,-728.329358,0.0003322,31]
[401311316,1768126249498,-728.329358,0.0003322,31]
[401311317,1768126249507,-728.329358,0.0003322,31]
[401311318,1768126249516,-151.0,0.0003322,31]
[401311319,1768126249525,-151.0,0.0003322,31]
[401311320,1768126249534,-152.162088,0.0003322,2]
[401311321,1768126249543,-151.0,0.0003322,31]
[401311322,1768126249553,-151.0,0.0003322,31]
[401311323,1768126249562,-151.0,0.0003322,31]
[401311324,1768126249571,-151.0,0.0003322,31]
[401311325,1768126249581,-151.0,0.0003322,31]
[401311326,1768126249594,-173.073557,0.0003322,31]
[401311327,1768126249603,-151.0,0.0003322,31]
[401311328,1768126249612,-151.0,0.0003322,31]
[401311329,1768126249622,-151.0,0.0003322,31]
[401311330,1768126249633,-173.073557,0.0003322,31]
[401311331,1768126249642,-151.0,0.0003322,31]
[401311332,1768126249651,-171.590888,0.0003322,31]
[401311333,1768126249663,-151.0,0.0003322,31]
[401311334,1768126249672,-168.350881,0.0003322,31]
[401311335,1768126249682,-173.073557,0.0003322,31]
[401311336,1768126249691,-209.953007,0.0003322,31]
[401311337,1768126249700,-173.073557,0.0003322,31]
[401311338,1768126249709,-151.0,0.0003322,31]
[401311339,1768126249718,-151.0,0.0003322,31]
[401311340,1768126249727,-381.0,0.00033232,7]
[401311341,1768126249736,-382.0,0.00033295,2]
[401311342,1768126249746,-1112.0,0.00033299,2]
[401311343,1768126249755,-468.6,0.00033384,6]
[401311344,1768126249765,-600.0,0.00033425,5]
[401311345,1768126249774,-347.0,0.00033447,2]
[401311346,1768126249783,-4684.22413943,0.00033475,2]
[401311347,1768126249792,-1339.42153797,0.00033475,2]
[401311348,1768126249803,-5357.68615187,0.00033475,2]
[401311349,1768126249812,-1637.76576148,0.00033518,2]
[401311350,1768126249821,-374.37189833,0.00033518,2]
[401311351,1768126249830,-1497.48759332,0.00033518,2]
[401311352,1768126249839,-3369.34708497,0.00033518,2]
[401311353,1768126249848,-5989.95037327,0.00033518,2]
[401311354,1768126249857,-9359.29745824,0.00033518,2]
[401311355,1768126249866,-1361.82278884,0.00033537,120]
[401311356,1768126249876,-210.0,0.00033699,5]
[401311357,1768126249885,-163.38,0.000337,10]
[401311358,1768126249894,-381.0,0.00033724,2]
[401311359,1768126249903,-448.0,0.00033783,2]
[401311360,1768126249912,-800.0,0.00033968,2]
[401311361,1768126249921,-999.0,0.00033972,120]
[401311362,1768126249930,-900.0,0.00033973,5]
[401311363,1768126249938,-381.0,0.00033973,2]
[401311364,1768126249947,-6973.58251921,0.00034012,7]
[401311365,1768126249956,-692.11611456,0.00034012,7]
[401311366,1768126249965,-2768.46445824,0.00034012,7]
[401311367,1768126249974,-381.0,0.00034025,2]
[401311368,1768126249983,-800.0,0.00034111,2]
[401311369,1768126249992,-381.0,0.00034115,2]
[401311370,1768126250001,-415.97,0.00034133,60]
[401311371,1768126250010,-488.47723609,0.00034145,2]
[401311372,1768126250019,-381.0,0.00034199,7]
[401311373,1768126250028,-756.0,0.00034213,30]
[401311374,1768126250037,-720.0,0.00034213,30]
[401311375,1768126250047,-547.0,0.00034213,30]
[401311376,1768126250056,-415.97,0.00034233,60]
[401311377,1768126250065,-415.97,0.00034333,60]
[401311378,1768126250074,-2435.3495088,0.00034376,2]
[401311379,1768126250085,-81222.7739414,0.00034376,2]
[401311380,1768126250095,-1112.0,0.00034399,2]
[401311381,1768126250107,-2560.29818,0.00034415,2]
[401311382,1768126250116,-800.0,0.00034417,2]
[401311383,1768126250126,-415.97,0.00034433,60]
[401311384,1768126250135,-381.0,0.00034452,2]
[401311385,1768126250144,-629.16420479,0.00034455,2]
[401311386,1768126250153,-1002.20117456,0.00034458,15]
[401311387,1768126250162,-269.957,0.00034494,39]
[401311388,1768126250171,-1200.0,0.00034521,5]
[401311389,1768126250180,-270.0,0.00034521,5]
[401311390,1768126250190,-3148.42850925,0.00034527,7]
[401311391,1768126250199,-415.97,0.00034533,60]
[401311392,1768126250208,-1095.40809829,0.00034535,3]
[401311393,1768126250217,-250.0,0.00034535,3]
[401311394,1768126250227,-151.0,0.00034535,3]
[401311395,1768126250236,-250.0,0.00034535,3]
[401311396,1768126250246,-151.0,0.00034535,3]
[401311397,1768126250256,-250.0,0.00034535,3]
[401311398,1768126250267,-151.0,0.00034535,3]
[401311399,1768126250276,-151.0,0.00034535,3]
[401311400,1768126250286,-151.0,0.00034535,3]
[401311401,1768126250295,-250.0,0.00034535,3]
[401311402,1768126250304,-151.0,0.00034535,3]
[401311403,1768126250314,-151.0,0.00034535,3]
[401311404,1768126250324,-250.15738416,0.00034535,3]
[401311405,1768126250334,-445.202766,0.00034535,3]
[401311406,1768126250344,-151.0,0.00034535,3]
[401311407,1768126250353,-461.67526834,0.00034535,3]
[401311408,1768126250363,-151.0,0.00034535,3]
[401311409,1768126250372,-478.75725327,0.00034535,3]
[401311410,1768126250383,-151.0,0.00034535,3]
[401311411,1768126250392,-151.0,0.00034535,3]
[401311412,1768126250402,-496.47127164,0.00034535,3]
[401311413,1768126250411,-153.90472729,0.00034535,3]
[401311414,1768126250420,-151.0,0.00034535,3]
[401311415,1768126250429,-514.84070869,0.00034535,3]
[401311416,1768126250438,-151.0,0.00034535,3]
[401311417,1768126250447,-533.88981491,0.00034535,3]
[401311418,1768126250456,-151.0,0.00034535,3]
[401311419,1768126250465,-562.55157284,0.00034535,3]
[401311420,1768126250474,-151.0,0.00034535,3]
[401311421,1768126250483,-151.0,0.00034535,3]
[401311422,1768126250492,-151.0,0.00034535,3]
[401311423,1768126250502,-151.0,0.00034535,3]
[401311424,1768126250511,-151.0,0.00034535,3]
[401311425,1768126250520,-151.0,0.00034535,3]
[401311426,1768126250530,-151.0,0.00034535,3]
[401311427,1768126250539,-151.0,0.00034535,3]
[401311428,1768126250548,-154.07167593,0.00034535,3]